[Event "*** Titled Tuesday Blitz"]
[Site "Chess.com"]
[Date "2020.10.20"]
[Round "8"]
[White "AniJak"]
[Black "Grineva_Marianna"]
[Result "0-1"]
[WhiteElo "2386"]
[BlackElo "2272"]
[TimeControl "180+1"]
[EndTime "11:37:51 PDT"]
[Termination "Grineva_Marianna won by resignation"]

1. e4 {[%clk 0:03:00.9]} 1... c5 {[%clk 0:02:59.7]} 2. Nc3 {[%clk 0:02:59.9]}
2... a6 {[%clk 0:02:59.2]} 3. g3 {[%clk 0:02:58.9]} 3... b5 {[%clk 0:02:58.2]}
4. Bg2 {[%clk 0:02:58.6]} 4... Bb7 {[%clk 0:02:58.1]} 5. Nge2 {[%clk 0:02:57]}
5... e6 {[%clk 0:02:55.2]} 6. d4 {[%clk 0:02:56.1]} 6... cxd4 {[%clk 0:02:45.2]}
7. Nxd4 {[%clk 0:02:55.9]} 7... Nc6 {[%clk 0:02:43.7]} 8. O-O {[%clk 0:02:54.2]}
8... Nge7 {[%clk 0:02:30.8]} 9. Nb3 {[%clk 0:02:49]} 9... Ng6 {[%clk 0:02:26.7]}
10. Be3 {[%clk 0:02:41.3]} 10... d6 {[%clk 0:02:18.1]} 11. Qd2 {[%clk
0:02:36.1]} 11... Qc7 {[%clk 0:02:15.8]} 12. Rad1 {[%clk 0:02:34.5]} 12... Be7
{[%clk 0:02:15.1]} 13. f4 {[%clk 0:02:33.4]} 13... O-O {[%clk 0:02:09.8]} 14. h4
{[%clk 0:02:26.4]} 14... Rfd8 {[%clk 0:02:03.9]} 15. h5 {[%clk 0:02:25.6]} 15...
Nf8 {[%clk 0:02:03.4]} 16. Qf2 {[%clk 0:02:18.8]} 16... Nd7 {[%clk 0:01:58.7]}
17. g4 {[%clk 0:02:01.7]} 17... b4 {[%clk 0:01:45.5]} 18. Ne2 {[%clk 0:02:01.1]}
18... a5 {[%clk 0:01:43.9]} 19. g5 {[%clk 0:01:55.4]} 19... Ba6 {[%clk
0:01:36.9]} 20. Rfe1 {[%clk 0:01:52]} 20... a4 {[%clk 0:01:35]} 21. Nbd4 {[%clk
0:01:51.5]} 21... Nxd4 {[%clk 0:01:10.9]} 22. Nxd4 {[%clk 0:01:51.1]} 22... Nc5
{[%clk 0:01:08.5]} 23. f5 {[%clk 0:01:48.5]} 23... Rac8 {[%clk 0:00:54.5]} 24.
f6 {[%clk 0:01:46.9]} 24... Bf8 {[%clk 0:00:53.9]} 25. fxg7 {[%clk 0:01:46.1]}
25... Bxg7 {[%clk 0:00:54.8]} 26. h6 {[%clk 0:01:46.3]} 26... Be5 {[%clk
0:00:53.4]} 27. Nf3 {[%clk 0:01:45.5]} 27... Bxb2 {[%clk 0:00:48.4]} 28. Bd4
{[%clk 0:01:40.5]} 28... Bxd4 {[%clk 0:00:46.9]} 29. Nxd4 {[%clk 0:01:38.1]}
29... Qe7 {[%clk 0:00:41.6]} 30. Nf3 {[%clk 0:01:31]} 30... Kh8 {[%clk
0:00:37.4]} 31. Qd4+ {[%clk 0:01:30.6]} 31... e5 {[%clk 0:00:31.4]} 32. Qxb4
{[%clk 0:01:30.7]} 32... Rg8 {[%clk 0:00:26.8]} 33. Qb6 {[%clk 0:01:21.1]} 33...
Rcd8 {[%clk 0:00:20.6]} 34. Rd5 {[%clk 0:01:16.6]} 34... Bc8 {[%clk 0:00:20.5]}
35. Qb2 {[%clk 0:00:58.3]} 35... Bg4 {[%clk 0:00:19.5]} 36. Rxc5 {[%clk
0:00:58.1]} 36... Bxf3 {[%clk 0:00:18.4]} 37. Bxf3 {[%clk 0:00:30.4]} 37...
Qxg5+ {[%clk 0:00:17.3]} 38. Kf2 {[%clk 0:00:29.9]} 38... Qg3+ {[%clk
0:00:16.1]} 39. Ke2 {[%clk 0:00:29]} 39... Qh2+ {[%clk 0:00:16.5]} 40. Ke3
{[%clk 0:00:24.5]} 40... dxc5 {[%clk 0:00:16.6]} 41. Qc3 {[%clk 0:00:15.5]}
41... Qf4+ {[%clk 0:00:16.2]} 42. Ke2 {[%clk 0:00:15.9]} 42... Rg3 {[%clk
0:00:15]} 43. Rf1 {[%clk 0:00:16]} 43... Rh3 {[%clk 0:00:14.5]} 44. Rf2 {[%clk
0:00:16.1]} 44... Rh2 {[%clk 0:00:13.7]} 45. Rxh2 {[%clk 0:00:14.6]} 45... Qxh2+
{[%clk 0:00:14.6]} 46. Kf1 {[%clk 0:00:13.8]} 46... Qf4 {[%clk 0:00:14.1]} 47.
Ke2 {[%clk 0:00:13.8]} 47... Rd6 {[%clk 0:00:11.7]} 48. Qb2 {[%clk 0:00:13.3]}
48... Rxh6 {[%clk 0:00:11.3]} 49. Qb8+ {[%clk 0:00:13]} 49... Kg7 {[%clk
0:00:11.8]} 50. Qd6 {[%clk 0:00:02.5]} 50... Rh2+ {[%clk 0:00:11.8]} 51. Kd3
{[%clk 0:00:02.9]} 51... Rd2+ {[%clk 0:00:11.1]} 52. Kc4 {[%clk 0:00:03.8]}
52... Rxd6 {[%clk 0:00:11.3]} 53. Kxc5 {[%clk 0:00:03.4]} 53... Rd4 {[%clk
0:00:11.5]} 0-1

[Event "*** Titled Tuesday Blitz"]
[Site "Chess.com"]
[Date "2020.10.20"]
[Round "8"]
[White "Guriempire"]
[Black "Legendinunknown"]
[Result "0-1"]
[WhiteElo "2785"]
[BlackElo "2616"]
[TimeControl "180+1"]
[EndTime "11:37:54 PDT"]
[Termination "Legendinunknown won by resignation"]

1. c4 {[%clk 0:03:00.9]} 1... e5 {[%clk 0:02:59.8]} 2. g3 {[%clk 0:02:59.8]}
2... Nf6 {[%clk 0:02:59.8]} 3. Bg2 {[%clk 0:03:00.2]} 3... d5 {[%clk 0:02:57.8]}
4. cxd5 {[%clk 0:03:01.1]} 4... Nxd5 {[%clk 0:02:58.3]} 5. Nf3 {[%clk
0:03:01.6]} 5... Nc6 {[%clk 0:02:57.5]} 6. O-O {[%clk 0:03:02]} 6... Nb6 {[%clk
0:02:57]} 7. b3 {[%clk 0:03:01.1]} 7... Be7 {[%clk 0:02:55]} 8. Bb2 {[%clk
0:03:01.3]} 8... Bf6 {[%clk 0:02:55]} 9. Nc3 {[%clk 0:02:52.3]} 9... e4 {[%clk
0:02:54.7]} 10. Ne1 {[%clk 0:02:51]} 10... Bf5 {[%clk 0:02:54.2]} 11. Nc2 {[%clk
0:02:45.2]} 11... O-O {[%clk 0:02:51.4]} 12. Ne3 {[%clk 0:02:45.6]} 12... Bg6
{[%clk 0:02:51.1]} 13. Qc1 {[%clk 0:02:44.4]} 13... Re8 {[%clk 0:02:49.5]} 14.
Ng4 {[%clk 0:02:40.6]} 14... Bg5 {[%clk 0:02:38.7]} 15. Rd1 {[%clk 0:02:36.9]}
15... Nd4 {[%clk 0:02:30.9]} 16. h4 {[%clk 0:02:32.7]} 16... Nd5 {[%clk
0:02:07.9]} 17. Kf1 {[%clk 0:02:26.4]} 17... Bxh4 {[%clk 0:02:01.8]} 18. gxh4
{[%clk 0:02:21.9]} 18... Nf4 {[%clk 0:01:57.4]} 19. d3 {[%clk 0:02:03.2]} 19...
Nxg2 {[%clk 0:01:38]} 20. Kxg2 {[%clk 0:02:04.1]} 20... exd3 {[%clk 0:01:35.3]}
21. exd3 {[%clk 0:01:54.3]} 21... Qxh4 {[%clk 0:01:33]} 22. Qf4 {[%clk
0:01:54.7]} 22... Ne6 {[%clk 0:01:31.2]} 23. Qg3 {[%clk 0:01:54.1]} 23... Qg5
{[%clk 0:01:27.3]} 24. Ne4 {[%clk 0:01:36.9]} 24... Nf4+ {[%clk 0:01:14.3]} 25.
Kf3 {[%clk 0:01:35]} 25... Bxe4+ {[%clk 0:01:07.4]} 26. dxe4 {[%clk 0:01:35.9]}
26... Ng6 {[%clk 0:01:07.9]} 27. Rd4 {[%clk 0:01:12.7]} 27... f5 {[%clk
0:01:00.4]} 28. Ne3 {[%clk 0:01:08.1]} 28... Qh5+ {[%clk 0:00:57.6]} 29. Kg2
{[%clk 0:01:05.2]} 29... f4 {[%clk 0:00:57.4]} 30. Qg4 {[%clk 0:01:02.8]} 30...
fxe3 {[%clk 0:00:45.8]} 31. Qxh5 {[%clk 0:01:00.9]} 31... Nf4+ {[%clk
0:00:45.7]} 32. Kf3 {[%clk 0:01:01.2]} 32... Nxh5 {[%clk 0:00:46.6]} 33. Kxe3
{[%clk 0:01:01.5]} 33... Nf6 {[%clk 0:00:41.6]} 34. Rg1 {[%clk 0:00:57.4]} 34...
Kf7 {[%clk 0:00:40.3]} 35. f3 {[%clk 0:00:49.7]} 35... Rad8 {[%clk 0:00:37.9]}
36. Ra4 {[%clk 0:00:43.5]} 36... a6 {[%clk 0:00:37.5]} 37. Rc4 {[%clk
0:00:37.8]} 37... c6 {[%clk 0:00:36.2]} 38. a4 {[%clk 0:00:38.2]} 38... g6
{[%clk 0:00:31.8]} 39. a5 {[%clk 0:00:37.7]} 39... Nd5+ {[%clk 0:00:30]} 40. Kf2
{[%clk 0:00:34.3]} 40... Nf4 {[%clk 0:00:29.6]} 41. Bc3 {[%clk 0:00:31.8]} 41...
Nh3+ {[%clk 0:00:28.2]} 42. Kg2 {[%clk 0:00:32]} 42... Nxg1 {[%clk 0:00:29.1]}
43. Kxg1 {[%clk 0:00:32.6]} 43... Rd1+ {[%clk 0:00:19.7]} 44. Kf2 {[%clk
0:00:32.4]} 44... Rb1 {[%clk 0:00:20.3]} 45. Rb4 {[%clk 0:00:32.3]} 45... Re7
{[%clk 0:00:19.7]} 46. Bd4 {[%clk 0:00:31.5]} 46... Rd7 {[%clk 0:00:19.2]} 47.
Be3 {[%clk 0:00:30.7]} 47... h5 {[%clk 0:00:19]} 48. Kg3 {[%clk 0:00:30.6]}
48... Rb2 {[%clk 0:00:17.5]} 49. Kf4 {[%clk 0:00:25.7]} 49... Re2 {[%clk
0:00:15.1]} 50. Bc5 {[%clk 0:00:23.5]} 50... Ke6 {[%clk 0:00:14.7]} 51. Kg5
{[%clk 0:00:23]} 51... Kf7 {[%clk 0:00:13.9]} 52. Bd4 {[%clk 0:00:19.3]} 52...
Rg2+ {[%clk 0:00:13.1]} 53. Kf4 {[%clk 0:00:19.6]} 53... Rd2 {[%clk 0:00:13.7]}
54. Be3 {[%clk 0:00:19.5]} 54... R2d3 {[%clk 0:00:14.3]} 55. Bc5 {[%clk
0:00:17.7]} 55... Ke6 {[%clk 0:00:14.7]} 56. Bf2 {[%clk 0:00:18.1]} 56... Rf7+
{[%clk 0:00:14.4]} 57. Kg5 {[%clk 0:00:17.5]} 57... Rdxf3 {[%clk 0:00:15.3]} 58.
Bd4 {[%clk 0:00:17.3]} 58... Rg3+ {[%clk 0:00:15.3]} 59. Kh6 {[%clk 0:00:17.7]}
59... Rg4 {[%clk 0:00:15.8]} 60. Bc3 {[%clk 0:00:17.4]} 60... h4 {[%clk
0:00:15.7]} 61. Rd4 {[%clk 0:00:17.7]} 61... h3 {[%clk 0:00:16.1]} 62. e5 {[%clk
0:00:15.5]} 62... Rxd4 {[%clk 0:00:15.6]} 0-1

[Event "*** Titled Tuesday Blitz"]
[Site "Chess.com"]
[Date "2020.10.20"]
[Round "8"]
[White "TigrVShlyape"]
[Black "vovachesss"]
[Result "1/2-1/2"]
[WhiteElo "2858"]
[BlackElo "2698"]
[TimeControl "180+1"]
[EndTime "11:37:55 PDT"]
[Termination "Game drawn by repetition"]

1. d4 {[%clk 0:03:00.9]} 1... e5 {[%clk 0:02:58.4]} 2. dxe5 {[%clk 0:02:59.3]}
2... Nc6 {[%clk 0:02:59]} 3. Nf3 {[%clk 0:02:58.8]} 3... Nge7 {[%clk 0:02:59.3]}
4. c4 {[%clk 0:02:56.4]} 4... Ng6 {[%clk 0:02:59.1]} 5. Nc3 {[%clk 0:02:56.5]}
5... Ngxe5 {[%clk 0:02:56.9]} 6. Nxe5 {[%clk 0:02:56]} 6... Nxe5 {[%clk
0:02:57]} 7. e4 {[%clk 0:02:41.8]} 7... Bc5 {[%clk 0:02:54.9]} 8. Be2 {[%clk
0:02:40.4]} 8... O-O {[%clk 0:02:54.2]} 9. O-O {[%clk 0:02:39.2]} 9... d6 {[%clk
0:02:52.9]} 10. Na4 {[%clk 0:02:34.9]} 10... Qh4 {[%clk 0:02:42.3]} 11. Nxc5
{[%clk 0:02:31.4]} 11... dxc5 {[%clk 0:02:43.2]} 12. Be3 {[%clk 0:02:21.3]}
12... Qxe4 {[%clk 0:02:23.9]} 13. Bxc5 {[%clk 0:02:17.9]} 13... Bh3 {[%clk
0:01:25.5]} 14. f3 {[%clk 0:02:14.6]} 14... Qg6 {[%clk 0:01:15.3]} 15. Rf2
{[%clk 0:02:13.6]} 15... Rfd8 {[%clk 0:01:10.2]} 16. Qf1 {[%clk 0:01:53.6]}
16... Nd3 {[%clk 0:01:01.7]} 17. Bxd3 {[%clk 0:01:52.3]} 17... Rxd3 {[%clk
0:01:02.6]} 18. Rd1 {[%clk 0:01:38]} 18... Rad8 {[%clk 0:01:00.3]} 19. Rxd3
{[%clk 0:01:31.3]} 19... Rxd3 {[%clk 0:01:01.2]} 20. Qe2 {[%clk 0:01:16.7]}
20... Be6 {[%clk 0:00:51.1]} 21. b3 {[%clk 0:01:15.7]} 21... h6 {[%clk
0:00:45.9]} 22. Be3 {[%clk 0:01:00.9]} 22... a6 {[%clk 0:00:37.5]} 23. Qe1
{[%clk 0:00:55.9]} 23... b5 {[%clk 0:00:29.4]} 24. cxb5 {[%clk 0:00:54.3]} 24...
axb5 {[%clk 0:00:30.3]} 25. Rd2 {[%clk 0:00:53.7]} 25... Bd5 {[%clk 0:00:24.4]}
26. Rxd3 {[%clk 0:00:50.8]} 26... Qxd3 {[%clk 0:00:24.4]} 27. Qc1 {[%clk
0:00:44.5]} 27... c6 {[%clk 0:00:19.6]} 28. Kf2 {[%clk 0:00:43.9]} 28... g5
{[%clk 0:00:19.2]} 29. h3 {[%clk 0:00:42.6]} 29... f6 {[%clk 0:00:17.6]} 30. Qd2
{[%clk 0:00:34.5]} 30... Qf5 {[%clk 0:00:17.9]} 31. Bd4 {[%clk 0:00:30.8]} 31...
h5 {[%clk 0:00:17.5]} 32. Qe2 {[%clk 0:00:26.2]} 32... Kf7 {[%clk 0:00:17.3]}
33. Bc5 {[%clk 0:00:25]} 33... g4 {[%clk 0:00:11.8]} 34. Qe7+ {[%clk 0:00:23.3]}
34... Kg6 {[%clk 0:00:12.4]} 35. hxg4 {[%clk 0:00:23.1]} 35... hxg4 {[%clk
0:00:12.6]} 36. Qe8+ {[%clk 0:00:23]} 36... Bf7 {[%clk 0:00:12.6]} 37. Qe3
{[%clk 0:00:23.5]} 37... gxf3 {[%clk 0:00:10.2]} 38. gxf3 {[%clk 0:00:23]} 38...
Bd5 {[%clk 0:00:10.5]} 39. Kg3 {[%clk 0:00:21.4]} 39... Be6 {[%clk 0:00:05.6]}
40. Qe4 {[%clk 0:00:20.6]} 40... Qxe4 {[%clk 0:00:02.9]} 41. fxe4 {[%clk
0:00:20.8]} 41... f5 {[%clk 0:00:03.2]} 42. e5 {[%clk 0:00:21]} 42... Kg5 {[%clk
0:00:03]} 43. Be3+ {[%clk 0:00:21.1]} 43... Kg6 {[%clk 0:00:03.6]} 44. Kf4
{[%clk 0:00:21.4]} 44... Bd7 {[%clk 0:00:03.8]} 45. a4 {[%clk 0:00:20]} 45...
bxa4 {[%clk 0:00:03.8]} 46. bxa4 {[%clk 0:00:20.2]} 46... Kf7 {[%clk 0:00:02]}
47. a5 {[%clk 0:00:20.3]} 47... Ke6 {[%clk 0:00:02.8]} 48. a6 {[%clk 0:00:20.3]}
48... Bc8 {[%clk 0:00:03.5]} 49. a7 {[%clk 0:00:20.5]} 49... Bb7 {[%clk
0:00:04]} 50. Bb6 {[%clk 0:00:20.1]} 50... Kd5 {[%clk 0:00:04]} 51. Bc7 {[%clk
0:00:20.1]} 51... Ke6 {[%clk 0:00:04]} 52. Bb6 {[%clk 0:00:19.7]} 52... Ba8
{[%clk 0:00:04.3]} 53. Be3 {[%clk 0:00:19]} 53... Bb7 {[%clk 0:00:04.4]} 54. Bd4
{[%clk 0:00:18.4]} 54... Ba8 {[%clk 0:00:03.9]} 55. Kg5 {[%clk 0:00:17.7]} 55...
c5 {[%clk 0:00:04.4]} 56. Bc3 {[%clk 0:00:16.3]} 56... c4 {[%clk 0:00:04]} 57.
Kf4 {[%clk 0:00:16.5]} 57... Bb7 {[%clk 0:00:04.2]} 58. Ke3 {[%clk 0:00:16.6]}
58... Bd5 {[%clk 0:00:02.8]} 59. Kf4 {[%clk 0:00:14.6]} 59... Bb7 {[%clk
0:00:02.8]} 60. Kg5 {[%clk 0:00:14.4]} 60... Ba8 {[%clk 0:00:02.9]} 61. Kf4
{[%clk 0:00:14.5]} 61... Bb7 {[%clk 0:00:03.4]} 1/2-1/2

[Event "*** Titled Tuesday Blitz"]
[Site "Chess.com"]
[Date "2020.10.20"]
[Round "8"]
[White "Gogolev_Artemy"]
[Black "NikolaGry"]
[Result "0-1"]
[WhiteElo "2531"]
[BlackElo "2711"]
[TimeControl "180+1"]
[EndTime "11:37:58 PDT"]
[Termination "NikolaGry won by resignation"]

1. Nf3 {[%clk 0:03:00.9]} 1... c5 {[%clk 0:02:59.4]} 2. c4 {[%clk 0:03:00.1]}
2... b6 {[%clk 0:02:59.6]} 3. g3 {[%clk 0:02:58.9]} 3... Bb7 {[%clk 0:02:59.7]}
4. Bg2 {[%clk 0:02:58.9]} 4... Nf6 {[%clk 0:02:59.8]} 5. O-O {[%clk 0:02:57.5]}
5... e6 {[%clk 0:03:00]} 6. d4 {[%clk 0:02:57.3]} 6... cxd4 {[%clk 0:02:59.7]}
7. Qxd4 {[%clk 0:02:58.2]} 7... Be7 {[%clk 0:02:58.5]} 8. Nc3 {[%clk 0:02:58.3]}
8... O-O {[%clk 0:02:56.5]} 9. Rd1 {[%clk 0:02:53.4]} 9... d6 {[%clk 0:02:47.3]}
10. Bg5 {[%clk 0:02:45.8]} 10... Nc6 {[%clk 0:02:26.8]} 11. Qf4 {[%clk
0:02:35.6]} 11... Ne8 {[%clk 0:02:14.8]} 12. Bxe7 {[%clk 0:02:29.4]} 12... Qxe7
{[%clk 0:02:14]} 13. Rd3 {[%clk 0:02:11.1]} 13... Rd8 {[%clk 0:02:04.9]} 14.
Rad1 {[%clk 0:02:10]} 14... f5 {[%clk 0:02:01.4]} 15. Qg5 {[%clk 0:01:47.1]}
15... Nf6 {[%clk 0:01:52.2]} 16. Nb5 {[%clk 0:01:44.7]} 16... h6 {[%clk
0:01:50.8]} 17. Qe3 {[%clk 0:01:35.6]} 17... d5 {[%clk 0:01:32.5]} 18. Nfd4
{[%clk 0:00:52.8]} 18... Nxd4 {[%clk 0:01:20.3]} 19. Rxd4 {[%clk 0:00:49]} 19...
e5 {[%clk 0:00:51]} 20. R4d2 {[%clk 0:00:27]} 20... d4 {[%clk 0:00:34.9]} 21.
Rxd4 {[%clk 0:00:20.6]} 21... Ng4 {[%clk 0:00:28.7]} 22. Rxd8 {[%clk 0:00:14.4]}
22... Nxe3 {[%clk 0:00:26.4]} 23. Rxf8+ {[%clk 0:00:14.2]} 23... Qxf8 {[%clk
0:00:25.3]} 24. fxe3 {[%clk 0:00:14.2]} 24... Bxg2 {[%clk 0:00:25.2]} 25. Kxg2
{[%clk 0:00:14]} 25... Qc5 {[%clk 0:00:25.2]} 26. Rd3 {[%clk 0:00:13.1]} 26...
Qxc4 {[%clk 0:00:24.5]} 27. Nc3 {[%clk 0:00:13.3]} 27... b5 {[%clk 0:00:24]} 28.
a3 {[%clk 0:00:12.7]} 28... a5 {[%clk 0:00:23.4]} 29. Kf2 {[%clk 0:00:12.9]}
29... b4 {[%clk 0:00:22.2]} 30. axb4 {[%clk 0:00:13.2]} 30... axb4 {[%clk
0:00:22.3]} 31. Nd5 {[%clk 0:00:10.7]} 31... Kh7 {[%clk 0:00:20.8]} 32. Ne7
{[%clk 0:00:10.2]} 32... Qe6 {[%clk 0:00:19.6]} 33. Nd5 {[%clk 0:00:09.5]} 33...
Qd6 {[%clk 0:00:18.9]} 34. Rd1 {[%clk 0:00:05.9]} 34... Qc5 {[%clk 0:00:18.8]}
35. Rd3 {[%clk 0:00:05.7]} 35... g5 {[%clk 0:00:17.8]} 36. Nf6+ {[%clk
0:00:04.7]} 36... Kg6 {[%clk 0:00:17.2]} 37. Nd7 {[%clk 0:00:05.1]} 37... Qc7
{[%clk 0:00:16.9]} 38. Rd5 {[%clk 0:00:03.8]} 38... e4 {[%clk 0:00:15.6]} 39.
Ne5+ {[%clk 0:00:03.3]} 39... Kh5 {[%clk 0:00:15.6]} 40. b3 {[%clk 0:00:03.1]}
40... Qc1 {[%clk 0:00:15.1]} 41. Nc4 {[%clk 0:00:01.5]} 41... Qh1 {[%clk
0:00:14.4]} 42. Rxf5 {[%clk 0:00:01.7]} 42... Qxh2+ {[%clk 0:00:14.3]} 43. Ke1
{[%clk 0:00:01.8]} 43... Qxg3+ {[%clk 0:00:14.4]} 44. Kd2 {[%clk 0:00:02.3]}
44... Kg6 {[%clk 0:00:13.9]} 45. Rf8 {[%clk 0:00:01.2]} 45... h5 {[%clk
0:00:13.8]} 46. Rd8 {[%clk 0:00:01.2]} 46... h4 {[%clk 0:00:13.7]} 47. Rg8+
{[%clk 0:00:01.4]} 47... Kh7 {[%clk 0:00:13.4]} 48. Re8 {[%clk 0:00:01.6]} 48...
h3 {[%clk 0:00:13.2]} 49. Rxe4 {[%clk 0:00:02.1]} 49... h2 {[%clk 0:00:12.9]}
50. Re7+ {[%clk 0:00:02.6]} 50... Kg8 {[%clk 0:00:12.8]} 51. Ne5 {[%clk
0:00:02.6]} 51... h1=Q {[%clk 0:00:12]} 52. Re8+ {[%clk 0:00:02.6]} 52... Kg7
{[%clk 0:00:11.7]} 53. Nd3 {[%clk 0:00:02.5]} 53... Qa1 {[%clk 0:00:09.5]} 54.
Re7+ {[%clk 0:00:02.7]} 54... Kf8 {[%clk 0:00:09.6]} 55. Rc7 {[%clk 0:00:02.7]}
55... Qc3+ {[%clk 0:00:09.3]} 56. Rxc3 {[%clk 0:00:02.6]} 56... bxc3+ {[%clk
0:00:09.8]} 57. Kxc3 {[%clk 0:00:01.2]} 0-1

[Event "*** Titled Tuesday Blitz"]
[Site "Chess.com"]
[Date "2020.10.20"]
[Round "8"]
[White "TimofeevAr"]
[Black "maximnovik"]
[Result "1-0"]
[WhiteElo "2778"]
[BlackElo "2516"]
[TimeControl "180+1"]
[EndTime "11:37:58 PDT"]
[Termination "TimofeevAr won on time"]

1. e4 {[%clk 0:03:00.9]} 1... c6 {[%clk 0:02:59.2]} 2. d4 {[%clk 0:03:00.3]}
2... d5 {[%clk 0:02:59.6]} 3. f3 {[%clk 0:03:00.8]} 3... e6 {[%clk 0:02:57.5]}
4. Nc3 {[%clk 0:03:00]} 4... Qb6 {[%clk 0:02:57.5]} 5. a4 {[%clk 0:02:58.3]}
5... a6 {[%clk 0:02:53]} 6. a5 {[%clk 0:02:55.2]} 6... Qc7 {[%clk 0:02:52.5]} 7.
Bd2 {[%clk 0:02:51.4]} 7... Nf6 {[%clk 0:02:51]} 8. e5 {[%clk 0:02:48.5]} 8...
Nfd7 {[%clk 0:02:49.9]} 9. f4 {[%clk 0:02:48.2]} 9... c5 {[%clk 0:02:49.3]} 10.
Nf3 {[%clk 0:02:48.2]} 10... Nc6 {[%clk 0:02:49.7]} 11. Bd3 {[%clk 0:02:42.7]}
11... cxd4 {[%clk 0:02:40.2]} 12. Ne2 {[%clk 0:02:42.7]} 12... Nc5 {[%clk
0:02:40.5]} 13. O-O {[%clk 0:02:41.4]} 13... Be7 {[%clk 0:02:36.4]} 14. Kh1
{[%clk 0:02:39.7]} 14... O-O {[%clk 0:02:35.9]} 15. Nexd4 {[%clk 0:02:39.9]}
15... Nxd4 {[%clk 0:02:31]} 16. Nxd4 {[%clk 0:02:39.6]} 16... Bd7 {[%clk
0:02:31.2]} 17. Qe2 {[%clk 0:02:34.3]} 17... Nxd3 {[%clk 0:02:29]} 18. cxd3
{[%clk 0:02:33.9]} 18... Rac8 {[%clk 0:02:26.6]} 19. b4 {[%clk 0:02:32.1]} 19...
g6 {[%clk 0:02:23.3]} 20. h3 {[%clk 0:02:26.8]} 20... b6 {[%clk 0:02:10]} 21.
Qe3 {[%clk 0:02:14.4]} 21... bxa5 {[%clk 0:02:05.3]} 22. Rxa5 {[%clk 0:02:14.1]}
22... Qb7 {[%clk 0:02:03.7]} 23. Rfa1 {[%clk 0:02:05.6]} 23... Bd8 {[%clk
0:01:45]} 24. Rxa6 {[%clk 0:02:04.9]} 24... Bb6 {[%clk 0:01:45.2]} 25. R6a2
{[%clk 0:01:55.5]} 25... Ra8 {[%clk 0:01:43.7]} 26. Bc3 {[%clk 0:01:51.6]} 26...
Rxa2 {[%clk 0:01:43.1]} 27. Rxa2 {[%clk 0:01:52.1]} 27... Ra8 {[%clk 0:01:43.3]}
28. Rxa8+ {[%clk 0:01:29.2]} 28... Qxa8 {[%clk 0:01:42.6]} 29. f5 {[%clk
0:01:29.7]} 29... Qa3 {[%clk 0:01:24.7]} 30. Qd2 {[%clk 0:01:19.7]} 30... exf5
{[%clk 0:01:20.1]} 31. Bb2 {[%clk 0:01:17.5]} 31... Qa2 {[%clk 0:01:16.1]} 32.
Qc3 {[%clk 0:01:17.2]} 32... Bxd4 {[%clk 0:01:12.3]} 33. Qxd4 {[%clk 0:01:16.9]}
33... Be6 {[%clk 0:01:12.8]} 34. b5 {[%clk 0:01:15.4]} 34... Qb3 {[%clk
0:01:10.6]} 35. b6 {[%clk 0:01:15.3]} 35... f4 {[%clk 0:01:06.4]} 36. Bc3 {[%clk
0:01:08.4]} 36... g5 {[%clk 0:00:59.7]} 37. Qb4 {[%clk 0:01:04.5]} 37... Qxb4
{[%clk 0:00:31.8]} 38. Bxb4 {[%clk 0:01:04.3]} 38... Bc8 {[%clk 0:00:32.3]} 39.
Be7 {[%clk 0:01:04.2]} 39... h6 {[%clk 0:00:30.2]} 40. h4 {[%clk 0:01:04.5]}
40... gxh4 {[%clk 0:00:24.6]} 41. Bxh4 {[%clk 0:01:02.2]} 41... Kg7 {[%clk
0:00:24.2]} 42. Kg1 {[%clk 0:01:00.5]} 42... Kg6 {[%clk 0:00:24.5]} 43. Kf2
{[%clk 0:00:58.6]} 43... Kf5 {[%clk 0:00:25]} 44. Bf6 {[%clk 0:00:58.9]} 44...
Kg4 {[%clk 0:00:24.8]} 45. Bg7 {[%clk 0:00:38]} 45... h5 {[%clk 0:00:24.9]} 46.
Bf6 {[%clk 0:00:38.4]} 46... Bb7 {[%clk 0:00:24.4]} 47. d4 {[%clk 0:00:38.2]}
47... Bc8 {[%clk 0:00:24.2]} 48. Bd8 {[%clk 0:00:37.8]} 48... Bb7 {[%clk
0:00:24.1]} 49. Bf6 {[%clk 0:00:37.5]} 49... Bc8 {[%clk 0:00:24.3]} 50. Bd8
{[%clk 0:00:33.7]} 50... Bb7 {[%clk 0:00:24.3]} 51. Be7 {[%clk 0:00:33.1]} 51...
Bc8 {[%clk 0:00:24.3]} 52. Bb4 {[%clk 0:00:33.1]} 52... Bb7 {[%clk 0:00:24.2]}
53. Be1 {[%clk 0:00:33.2]} 53... Bc8 {[%clk 0:00:24]} 54. Ke2 {[%clk 0:00:33]}
54... Ba6+ {[%clk 0:00:23.7]} 55. Kd2 {[%clk 0:00:32.5]} 55... h4 {[%clk
0:00:21.7]} 56. Kc3 {[%clk 0:00:31.9]} 56... h3 {[%clk 0:00:11.8]} 57. gxh3+
{[%clk 0:00:32.1]} 57... Kxh3 {[%clk 0:00:12]} 58. Kb4 {[%clk 0:00:32.7]} 58...
Kg2 {[%clk 0:00:11.8]} 59. Kc5 {[%clk 0:00:33.1]} 59... Bb7 {[%clk 0:00:11.6]}
60. Kd6 {[%clk 0:00:32.1]} 60... f3 {[%clk 0:00:11.6]} 61. Ke7 {[%clk
0:00:32.4]} 61... f2 {[%clk 0:00:07.9]} 62. Bxf2 {[%clk 0:00:32.6]} 62... Kxf2
{[%clk 0:00:07.8]} 63. Kxf7 {[%clk 0:00:33.2]} 63... Ke3 {[%clk 0:00:07.4]} 64.
e6 {[%clk 0:00:33.6]} 64... Kxd4 {[%clk 0:00:07.4]} 65. e7 {[%clk 0:00:34]}
65... Bc6 {[%clk 0:00:07.4]} 66. b7 {[%clk 0:00:33.4]} 1-0